fUSD/lending_fUSD_20240618
["ID","MTS","AMOUNT","RATE_DAILY","PERIOD"]
[329793092,1718676643184,-226.85225071,0.000201,2]
[329793093,1718676643193,-3899.7207591,0.00020521,2]
[329793094,1718676643203,-1000.0,0.00020522,2]
[329793095,1718676643212,-167.1,0.0002074,2]
[329793096,1718676643222,-510.0,0.000208,5]
[329793097,1718676643233,-681.66,0.00020928,2]
[329793098,1718676643243,-1250.0,0.00021,2]
[329793099,1718676643252,-786.76509919,0.00021039,2]
[329793100,1718676643262,-851.72,0.0002126,2]
[329793101,1718676643272,-167.1,0.00021451,2]
[329793102,1718676643282,-155.0,0.000215,2]
[329793103,1718676643296,-300.0,0.000216,7]
[329793104,1718676643306,-379.92588,0.00021644,2]
[329793105,1718676643316,-600.0,0.000217,7]
[329793106,1718676643325,-900.0,0.000218,7]
[329793107,1718676643336,-1000.0,0.00021817,2]
[329793108,1718676643346,-10000.0,0.00021817,2]
[329793109,1718676643367,-320.0028,0.00021817,2]
[329793110,1718676643377,-873.7217,0.00021817,2]
[329793111,1718676643386,-1219.0965,0.00021817,2]
[329793112,1718676643398,-1454.0773,0.00021817,2]
[329793113,1718676643408,-74430.9375,0.00021817,2]
[329793114,1718676643417,-1551.1776,0.00021817,2]
[329793115,1718676643427,-7500.0,0.00021817,2]
[329793116,1718676643436,-203.00491814,0.00021817,2]
[329793117,1718676643446,-3656.76230865,0.00021817,2]
[329793118,1718676643455,-261.96031161,0.00021817,2]
[329793119,1718676643465,-1300.0,0.000219,7]
[329793120,1718676643474,-505.28291354,0.000219,2]
[329793121,1718676643483,-460.7955554,0.000219,2]
[329793122,1718676643492,-207.48520994,0.00021907,2]
[329793123,1718676643502,-25149.05534928,0.0002191,2]
[329793124,1718676643511,-304.73786232,0.00021915,2]
[329793125,1718676643521,-226.09468636,0.00021915,2]
[329793126,1718676643530,-225.01639253,0.00021915,2]
[329793127,1718676643540,-5233.62410688,0.00021915,2]
[329793128,1718676643549,-1789.24005789,0.00021915,2]
[329793129,1718676643559,-221.95778915,0.00021915,2]
[329793130,1718676643569,-155.17760974,0.00021915,2]
[329793131,1718676643579,-3568670.01588944,0.00021915,2]
[329793132,1718676643588,-204.80791553,0.00021916,2]
[329793133,1718676643599,-547.78950273,0.00021916,2]
[329793134,1718676643615,-201.4162079,0.00021916,2]
[329793135,1718676643624,-233.05679119,0.00021917,2]
[329793136,1718676643635,-9642.85070461,0.00021917,2]
[329793137,1718676643644,-174.74858604,0.00021917,2]
[329793138,1718676643655,-487.0,0.00021917,2]
[329793139,1718676643664,-616.98534866,0.00021917,2]
[329793140,1718676643674,-500.0,0.00021917,2]
[329793141,1718676643683,-497.31438006,0.00021917,2]
[329793142,1718676643693,-505.37856672,0.00021917,2]
[329793143,1718676643702,-503.78564134,0.00021917,2]
[329793144,1718676643712,-396.50395749,0.00021917,2]
[329793145,1718676643721,-567.39048646,0.00021917,2]
[329793146,1718676643732,-502.6834398,0.00021917,2]
[329793147,1718676643742,-515.86775883,0.00021917,2]
[329793148,1718676643752,-574.20907682,0.00021917,2]
[329793149,1718676643762,-500.286849,0.00021917,2]
[329793150,1718676643771,-200.0,0.00021917,2]
[329793151,1718676643782,-501.42098995,0.00021917,2]
[329793152,1718676643791,-502.1310488,0.00021917,2]
[329793153,1718676643801,-503.67739557,0.00021917,2]
[329793154,1718676643811,-511.96180488,0.00021917,2]
[329793155,1718676643820,-177.20708168,0.00021917,2]
[329793156,1718676643830,-567.06072859,0.00021917,2]
[329793157,1718676643839,-500.98019021,0.00021917,2]
[329793158,1718676643854,-236.40474168,0.00021917,2]
[329793159,1718676643864,-541.08786302,0.00021917,2]
[329793160,1718676643874,-500.0,0.00021917,2]
[329793161,1718676643883,-242.48585244,0.00021917,2]
[329793162,1718676643893,-497.88623622,0.00021917,2]
[329793163,1718676643902,-500.0,0.00021917,2]
[329793164,1718676643912,-501.51667701,0.00021917,2]
[329793165,1718676643922,-539.05890129,0.00021917,2]
[329793166,1718676643931,-500.48541037,0.00021917,2]
[329793167,1718676643941,-500.0,0.00021917,2]
[329793168,1718676643950,-500.79506525,0.00021917,2]
[329793169,1718676643960,-500.0,0.00021917,2]
[329793170,1718676643969,-500.0,0.00021917,2]
[329793171,1718676643979,-509.92605296,0.00021917,2]
[329793172,1718676643989,-508.73522961,0.00021917,2]
[329793173,1718676643999,-511.28609272,0.00021917,2]
[329793174,1718676644008,-511.8116917,0.00021917,2]
[329793175,1718676644018,-500.9328031,0.00021917,2]
[329793176,1718676644027,-500.0,0.00021917,2]
[329793177,1718676644036,-502.85478215,0.00021917,2]
[329793178,1718676644046,-500.0,0.00021917,2]
[329793179,1718676644056,-507.87268185,0.00021917,2]
[329793180,1718676644066,-503.51055143,0.00021917,2]
[329793181,1718676644075,-505.14236675,0.00021917,2]
[329793182,1718676644085,-506.86626332,0.00021917,2]
[329793183,1718676644095,-500.0,0.00021917,2]
[329793184,1718676644111,-500.0,0.00021917,2]
[329793185,1718676644120,-501.91167744,0.00021917,2]
[329793186,1718676644129,-588.30554934,0.00021917,2]
[329793187,1718676644139,-509.66022273,0.00021917,2]
[329793188,1718676644148,-500.0,0.00021917,2]
[329793189,1718676644157,-500.0,0.00021917,2]
[329793190,1718676644167,-502.98472868,0.00021917,2]
[329793191,1718676644176,-504.88498357,0.00021917,2]
[329793192,1718676644185,-504.28189181,0.00021917,2]
[329793193,1718676644194,-500.0,0.00021917,2]
[329793194,1718676644204,-500.0,0.00021917,2]
[329793195,1718676644215,-509.1372085,0.00021917,2]
[329793196,1718676644225,-505.21328003,0.00021917,2]
[329793197,1718676644235,-514.55436733,0.00021917,2]
[329793199,1718676644244,-510.61839725,0.00021917,2]
[329793201,1718676644255,-500.0,0.00021917,2]
[329793202,1718676644265,-511.27191012,0.00021917,2]
[329793203,1718676644276,-500.0,0.00021917,2]
[329793204,1718676644288,-507.78109784,0.00021917,2]
[329793205,1718676644299,-507.76321447,0.00021917,2]
[329793206,1718676644312,-500.0,0.00021917,2]
[329793207,1718676644324,-505.68935952,0.00021917,2]
[329793208,1718676644335,-506.95825827,0.00021917,2]
[329793209,1718676644346,-514.04760246,0.00021917,2]
[329793210,1718676644371,-513.47109301,0.00021917,2]
[329793211,1718676644382,-506.2569627,0.00021917,2]
[329793212,1718676644395,-506.7113749,0.00021917,2]
[329793213,1718676644406,-500.0,0.00021917,2]
[329793214,1718676644417,-506.27593846,0.00021917,2]
[329793215,1718676644428,-500.0,0.00021917,2]
[329793216,1718676644438,-583.27298838,0.00021917,2]
[329793217,1718676644448,-500.71583095,0.00021917,2]
[329793218,1718676644459,-500.0,0.00021917,2]
[329793219,1718676644470,-506.74583148,0.00021917,2]
[329793220,1718676644480,-513.96825889,0.00021917,2]
[329793221,1718676644491,-502.5359924,0.00021917,2]
[329793222,1718676644502,-572.96200206,0.00021917,2]
[329793223,1718676644512,-500.0,0.00021917,2]
[329793224,1718676644522,-500.0,0.00021917,2]
[329793225,1718676644532,-500.0,0.00021917,2]
[329793226,1718676644542,-249.4124534,0.00021917,2]
[329793227,1718676644553,-500.0,0.00021917,2]
[329793228,1718676644563,-514.69502942,0.00021917,2]
[329793229,1718676644573,-503.67251538,0.00021917,2]
[329793230,1718676644583,-303.58756693,0.00021917,2]
[329793231,1718676644593,-500.0,0.00021917,2]
[329793232,1718676644603,-500.34066521,0.00021917,2]
[329793233,1718676644612,-504.94883976,0.00021917,2]
[329793234,1718676644621,-501.9273291,0.00021917,2]
[329793235,1718676644631,-502.52197251,0.00021917,2]
[329793236,1718676644640,-417.97625454,0.00021917,2]
[329793237,1718676644650,-293.69154656,0.00021917,2]
[329793238,1718676644659,-508.13552339,0.00021917,2]
[329793239,1718676644669,-501.52577029,0.00021917,2]
[329793240,1718676644678,-504.06131261,0.00021917,2]
[329793241,1718676644688,-505.30765015,0.00021917,2]
[329793242,1718676644698,-500.0,0.00021917,2]
[329793243,1718676644708,-500.0,0.00021917,2]
[329793244,1718676644717,-500.73717081,0.00021917,2]
[329793245,1718676644727,-625.35,0.00021917,2]
[329793246,1718676644736,-500.0,0.00021917,2]
[329793247,1718676644746,-504.46389037,0.00021917,2]
[329793248,1718676644755,-500.0,0.00021917,2]
[329793249,1718676644765,-500.0,0.00021917,2]
[329793250,1718676644776,-501.51968814,0.00021917,2]
[329793251,1718676644786,-500.0,0.00021917,2]
[329793252,1718676644797,-505.51454144,0.00021917,2]
[329793253,1718676644807,-501.91026982,0.00021917,2]
[329793254,1718676644816,-500.0,0.00021917,2]
[329793255,1718676644826,-501.01608736,0.00021917,2]
[329793256,1718676644836,-500.0,0.00021917,2]
[329793257,1718676644845,-529.74804889,0.00021917,2]
[329793258,1718676644868,-514.35893658,0.00021917,2]
[329793259,1718676644878,-501.22379735,0.00021917,2]
[329793260,1718676644887,-424.2901487,0.00021917,2]
[329793261,1718676644897,-502.1497997,0.00021917,2]
[329793262,1718676644906,-341.10958623,0.00021917,2]
[329793263,1718676644916,-500.0,0.00021917,2]
[329793264,1718676644925,-500.0,0.00021917,2]
[329793265,1718676644934,-500.0,0.00021917,2]
[329793266,1718676644943,-583.93013249,0.00021917,2]
[329793267,1718676644952,-493.97389696,0.00021917,2]
[329793268,1718676644962,-310.52773612,0.00021917,2]
[329793269,1718676644971,-500.0,0.00021917,2]
[329793270,1718676644980,-501.21863449,0.00021917,2]
[329793271,1718676644990,-500.0,0.00021917,2]
[329793272,1718676645000,-500.0,0.00021917,2]
[329793273,1718676645009,-500.0,0.00021917,2]
[329793274,1718676645018,-500.0,0.00021917,2]
[329793275,1718676645028,-501.90259877,0.00021917,2]
[329793276,1718676645038,-500.0,0.00021917,2]
[329793277,1718676645047,-500.0,0.00021917,2]
[329793278,1718676645057,-501.32496925,0.00021917,2]
[329793279,1718676645066,-501.91690027,0.00021917,2]
[329793280,1718676645076,-500.0,0.00021917,2]
[329793281,1718676645086,-500.0,0.00021917,2]
[329793282,1718676645095,-500.0,0.00021917,2]
[329793283,1718676645113,-500.0,0.00021917,2]
[329793284,1718676645122,-513.8771145,0.00021917,2]
[329793285,1718676645131,-501.71994042,0.00021917,2]
[329793286,1718676645140,-501.22465646,0.00021917,2]
[329793287,1718676645149,-502.80979628,0.00021917,2]
[329793288,1718676645158,-595.67747807,0.00021917,2]
[329793289,1718676645167,-500.0,0.00021917,2]
[329793290,1718676645176,-500.0,0.00021917,2]
[329793291,1718676645185,-500.0,0.00021917,2]
[329793292,1718676645194,-500.0,0.00021917,2]
[329793293,1718676645204,-1097.0,0.00021917,2]
[329793294,1718676645213,-510.56988402,0.00021917,2]
[329793295,1718676645223,-253.11553406,0.00021917,2]
[329793296,1718676645232,-506.50537425,0.00021917,2]
[329793297,1718676645242,-500.0,0.00021917,2]
[329793298,1718676645251,-500.0,0.00021917,2]
[329793299,1718676645260,-500.0,0.00021917,2]
[329793300,1718676645270,-1140.28,0.00021917,2]
[329793301,1718676645279,-506.97619793,0.00021917,2]
[329793302,1718676645294,-500.0,0.00021917,2]
[329793303,1718676645304,-500.0,0.00021917,2]
[329793304,1718676645313,-414.97879614,0.00021917,2]
[329793305,1718676645323,-500.0,0.00021917,2]
[329793306,1718676645335,-868.22,0.00021917,2]
[329793307,1718676645344,-500.0,0.00021917,2]
[329793308,1718676645360,-500.0,0.00021917,2]
[329793309,1718676645372,-500.0,0.00021917,2]
[329793310,1718676645382,-500.0,0.00021917,2]
[329793311,1718676645392,-500.0,0.00021917,2]
[329793312,1718676645402,-647.39735694,0.00021917,2]
[329793313,1718676645411,-161.78065382,0.00021917,3]
[329793314,1718676645420,-500.0,0.00021917,2]
[329793315,1718676645429,-500.0,0.00021917,2]
[329793316,1718676645439,-956.5,0.00021917,2]
[329793317,1718676645448,-355.47107373,0.00021917,2]
[329793318,1718676645458,-500.0,0.00021917,2]
[329793319,1718676645468,-500.0,0.00021917,2]
[329793320,1718676645478,-1009.95599696,0.00021917,2]
[329793321,1718676645487,-500.0,0.00021917,2]
[329793322,1718676645497,-500.0,0.00021917,2]
[329793323,1718676645506,-500.0,0.00021917,2]
[329793324,1718676645515,-500.0,0.00021917,2]
[329793325,1718676645523,-508.38617844,0.00021917,2]
[329793326,1718676645532,-500.0,0.00021917,2]
[329793327,1718676645542,-500.0,0.00021917,2]
[329793328,1718676645551,-500.0,0.00021917,2]
[329793329,1718676645560,-500.0,0.00021917,2]
[329793330,1718676645569,-548.41,0.00021917,2]
[329793331,1718676645579,-1075.86,0.00021917,2]
[329793332,1718676645588,-502.13838301,0.00021917,2]
[329793333,1718676645598,-498.0,0.00021917,2]
[329793334,1718676645614,-500.0,0.00021917,2]
[329793335,1718676645624,-506.72339402,0.00021917,2]
[329793336,1718676645633,-500.0,0.00021917,2]
[329793337,1718676645643,-427.41239649,0.00021917,2]
[329793338,1718676645652,-500.0,0.00021917,2]
[329793339,1718676645661,-502.28038575,0.00021917,2]
[329793340,1718676645670,-577.67254559,0.00021917,2]
[329793341,1718676645680,-369.49881918,0.00021917,2]
[329793342,1718676645689,-500.68146758,0.00021917,2]
[329793343,1718676645699,-500.0,0.00021917,2]
[329793344,1718676645708,-609.98,0.00021917,2]
[329793345,1718676645718,-559.72,0.00021917,2]
[329793346,1718676645728,-500.0,0.00021917,2]
[329793347,1718676645738,-502.036968,0.00021917,2]
[329793348,1718676645747,-500.0,0.00021917,2]
[329793349,1718676645757,-500.0,0.00021917,2]
[329793350,1718676645766,-406.91974295,0.00021917,2]
[329793351,1718676645776,-500.0,0.00021917,2]
[329793352,1718676645785,-500.0,0.00021917,2]
[329793354,1718676645794,-505.33336455,0.00021917,2]
[329793356,1718676645802,-500.0,0.00021917,2]
[329793358,1718676645811,-502.79139438,0.00021917,2]
[329793359,1718676645820,-505.67109706,0.00021917,2]
[329793360,1718676645831,-500.0,0.00021917,2]
[329793361,1718676645840,-500.0,0.00021917,2]
[329793362,1718676645855,-931.88,0.00021917,2]
[329793363,1718676645864,-508.34016941,0.00021917,2]
[329793364,1718676645874,-515.53299178,0.00021917,2]
[329793365,1718676645883,-504.11180106,0.00021917,2]
[329793366,1718676645892,-505.0029793,0.00021917,2]
[329793367,1718676645902,-500.0,0.00021917,2]
[329793368,1718676645911,-500.0,0.00021917,2]
[329793369,1718676645920,-500.0,0.00021917,2]
[329793370,1718676645929,-500.0,0.00021917,2]
[329793371,1718676645939,-504.53553416,0.00021917,2]
[329793372,1718676645948,-500.0,0.00021917,2]
[329793373,1718676645957,-500.0,0.00021917,2]
[329793374,1718676645966,-587.61271572,0.00021917,2]
[329793375,1718676645976,-548.23214359,0.00021917,2]
[329793376,1718676645985,-633.68,0.00021917,2]
[329793377,1718676645994,-500.95668359,0.00021917,2]
[329793378,1718676646004,-507.16768886,0.00021917,2]
[329793379,1718676646013,-511.96523786,0.00021917,2]
[329793380,1718676646022,-500.0,0.00021917,2]
[329793381,1718676646032,-505.96236516,0.00021917,2]
[329793382,1718676646041,-500.0,0.00021917,2]
[329793383,1718676646051,-507.07190208,0.00021917,2]
[329793384,1718676646061,-500.0,0.00021917,2]
[329793385,1718676646070,-500.0,0.00021917,2]
[329793386,1718676646294,-503.23663756,0.00021917,2]
[329793387,1718676646305,-504.03894693,0.00021917,2]
[329793388,1718676646315,-500.0,0.00021917,2]
[329793389,1718676646324,-505.91905339,0.00021917,2]
[329793390,1718676646335,-511.9143448,0.00021917,2]
[329793391,1718676646345,-509.7478436,0.00021917,2]
[329793392,1718676646360,-500.0,0.00021917,2]
[329793393,1718676646370,-1399.97,0.00021917,2]
[329793394,1718676646380,-509.38700767,0.00021917,2]
[329793395,1718676646392,-505.72577597,0.00021917,2]
[329793396,1718676646403,-859.44,0.00021917,2]
[329793397,1718676646412,-502.61948823,0.00021917,2]
[329793398,1718676646422,-508.97199086,0.00021917,2]
[329793399,1718676646432,-500.0,0.00021917,2]
[329793400,1718676646442,-500.0,0.00021917,2]
[329793401,1718676646451,-500.0,0.00021917,2]
[329793402,1718676646462,-500.0,0.00021917,2]
[329793403,1718676646471,-510.15650161,0.00021917,2]
[329793404,1718676646481,-939.87,0.00021917,2]
[329793405,1718676646491,-500.0,0.00021917,2]
[329793406,1718676646501,-578.85283069,0.00021917,2]
[329793407,1718676646511,-504.23739763,0.00021917,2]
[329793408,1718676646520,-500.0,0.00021917,2]
[329793409,1718676646529,-500.0,0.00021917,2]
[329793410,1718676646539,-500.0,0.00021917,2]
[329793411,1718676646548,-500.0,0.00021917,2]
[329793412,1718676646557,-502.63105165,0.00021917,2]
[329793413,1718676646567,-503.29722034,0.00021917,2]
[329793414,1718676646577,-693.78,0.00021917,2]
[329793415,1718676646587,-509.30204591,0.00021917,2]
[329793416,1718676646596,-502.48802469,0.00021917,2]
[329793417,1718676646612,-503.65134028,0.00021917,2]
[329793418,1718676646623,-500.0,0.00021917,2]
[329793419,1718676646632,-500.0,0.00021917,2]
[329793420,1718676646643,-522.95257352,0.00021917,2]
[329793421,1718676646652,-782.52,0.00021917,2]
[329793422,1718676646662,-500.0,0.00021917,2]
[329793423,1718676646672,-500.0,0.00021917,2]
[329793424,1718676646682,-505.13443722,0.00021917,2]
[329793425,1718676646692,-506.58826208,0.00021917,2]
[329793426,1718676646702,-500.0,0.00021917,2]
[329793427,1718676646712,-337.262,0.00021917,2]
[329793428,1718676646722,-504.28996174,0.00021917,2]
[329793429,1718676646732,-312.43076257,0.00021917,2]
[329793430,1718676646741,-883.84,0.00021917,2]
[329793431,1718676646751,-532.61755231,0.00021917,2]
[329793432,1718676646761,-511.26805321,0.00021917,2]
[329793433,1718676646772,-500.0,0.00021917,2]
[329793434,1718676646782,-507.76377875,0.00021917,2]
[329793435,1718676646792,-500.0,0.00021917,2]
[329793436,1718676646802,-874.78,0.00021917,2]
[329793437,1718676646811,-500.0,0.00021917,2]
[329793438,1718676646820,-500.0,0.00021917,2]
[329793439,1718676646830,-502.08592525,0.00021917,2]
[329793440,1718676646840,-500.0,0.00021917,2]
[329793441,1718676646852,-500.0,0.00021917,2]
[329793442,1718676646862,-691.82,0.00021917,2]
[329793443,1718676646872,-500.0,0.00021917,2]
[329793444,1718676646882,-501.69703245,0.00021917,2]
[329793445,1718676646892,-768.06,0.00021917,2]
[329793446,1718676646902,-500.0,0.00021917,2]
[329793447,1718676646912,-500.0,0.00021917,2]
[329793448,1718676646922,-537.16306269,0.00021917,2]
[329793449,1718676646931,-500.0,0.00021917,2]
[329793450,1718676646941,-500.0,0.00021917,2]
[329793451,1718676646951,-500.0,0.00021917,2]
[329793452,1718676646960,-501.28789534,0.00021917,2]
[329793453,1718676646969,-616.87,0.00021917,2]
[329793454,1718676646979,-542.58692358,0.00021917,2]
[329793455,1718676646989,-501.67441269,0.00021917,2]
[329793456,1718676646999,-512.55246767,0.00021917,2]
[329793457,1718676647009,-509.76165069,0.00021917,2]
[329793458,1718676647019,-500.0,0.00021917,2]
[329793459,1718676647029,-500.0,0.00021917,2]
[329793460,1718676647038,-500.0,0.00021917,2]
[329793461,1718676647048,-505.30572125,0.00021917,2]
[329793462,1718676647057,-504.24839542,0.00021917,2]
[329793463,1718676647067,-500.0,0.00021917,2]
[329793465,1718676647077,-502.50074109,0.00021917,2]
[329793468,1718676647087,-742.03,0.00021917,2]
[329793471,1718676647096,-786.62,0.00021917,2]
[329793473,1718676647112,-500.0,0.00021917,2]
[329793475,1718676647122,-914.08,0.00021917,2]
[329793477,1718676647130,-507.70024175,0.00021917,2]
[329793478,1718676647140,-504.52388397,0.00021917,2]
[329793480,1718676647149,-501.93924053,0.00021917,2]
[329793482,1718676647158,-500.0,0.00021917,2]
[329793485,1718676647168,-650.85,0.00021917,2]
[329793487,1718676647178,-500.0,0.00021917,2]
[329793489,1718676647187,-500.0,0.00021917,2]
[329793491,1718676647197,-500.0,0.00021917,2]
[329793493,1718676647208,-500.0,0.00021917,2]
[329793495,1718676647218,-616.28,0.00021917,2]
[329793496,1718676647228,-500.0,0.00021917,2]
[329793498,1718676647238,-500.0,0.00021917,2]
[329793499,1718676647248,-500.0,0.00021917,2]
[329793501,1718676647258,-841.71,0.00021917,2]
[329793503,1718676647267,-502.87383349,0.00021917,2]
[329793505,1718676647277,-505.11824689,0.00021917,2]
[329793507,1718676647293,-478.21535679,0.00021917,2]
[329793509,1718676647304,-500.0,0.00021917,2]
[329793510,1718676647314,-508.94466846,0.00021917,2]
[329793511,1718676647324,-500.0,0.00021917,2]
[329793512,1718676647335,-500.0,0.00021917,2]
[329793513,1718676647345,-500.0,0.00021917,2]
[329793514,1718676647366,-542.39877645,0.00021917,2]
[329793515,1718676647377,-500.0,0.00021917,2]
[329793516,1718676647387,-20039.59660156,0.00021917,2]
[329793517,1718676647397,-600.15,0.00021917,2]
[329793518,1718676647406,-521.36685283,0.00021917,2]
[329793519,1718676647415,-500.0,0.00021917,2]
[329793520,1718676647425,-500.0,0.00021917,2]
[329793521,1718676647434,-505.23715193,0.00021917,2]
[329793522,1718676647443,-621.59,0.00021917,2]
[329793523,1718676647453,-605.68604526,0.00021917,2]
[329793524,1718676647462,-256.01755862,0.00021917,2]
[329793525,1718676647471,-500.0,0.00021917,2]
[329793526,1718676647480,-722.06,0.00021917,2]
[329793527,1718676647490,-509.27505791,0.00021917,2]
[329793528,1718676647499,-501.27022507,0.00021917,2]
[329793529,1718676647508,-502.12870759,0.00021917,2]
[329793530,1718676647519,-500.0,0.00021917,2]
[329793531,1718676647528,-500.90632111,0.00021917,2]
[329793532,1718676647539,-500.0,0.00021917,2]
[329793533,1718676647551,-516.53,0.00021917,2]
[329793534,1718676647562,-500.0,0.00021917,2]
[329793535,1718676647571,-503.31884223,0.00021917,2]
[329793536,1718676647581,-500.0,0.00021917,2]
[329793537,1718676647591,-500.0,0.00021917,2]
[329793538,1718676647606,-480.0,0.00021917,2]
[329793539,1718676647615,-500.0,0.00021917,2]
[329793540,1718676647625,-507.45009245,0.00021917,2]
[329793541,1718676647634,-500.0,0.00021917,2]
[329793542,1718676647644,-507.29200963,0.00021917,2]
[329793543,1718676647653,-500.0,0.00021917,2]
[329793544,1718676647663,-500.0,0.00021917,2]
[329793545,1718676647672,-500.0,0.00021917,2]
[329793546,1718676647681,-503.45396054,0.00021917,2]
[329793547,1718676647690,-500.0,0.00021917,2]
[329793548,1718676647700,-508.30596322,0.00021917,2]
[329793549,1718676647711,-505.38179753,0.00021917,2]
[329793550,1718676647721,-500.0,0.00021917,2]
[329793551,1718676647730,-835.3,0.00021917,2]
[329793552,1718676647740,-500.0,0.00021917,2]
[329793553,1718676647749,-510.11161523,0.00021917,2]
[329793554,1718676647758,-500.0,0.00021917,2]
[329793555,1718676647768,-504.18257756,0.00021917,2]
[329793556,1718676647778,-500.0,0.00021917,2]
[329793557,1718676647788,-500.0,0.00021917,2]
[329793558,1718676647797,-507.8,0.00021917,2]
[329793559,1718676647807,-507.8,0.00021917,2]
[329793560,1718676647817,-507.8,0.00021917,2]
[329793561,1718676647826,-500.0,0.00021917,2]
[329793562,1718676647835,-507.8,0.00021917,2]
[329793563,1718676647845,-507.8,0.00021917,2]
[329793564,1718676647858,-512.56063793,0.00021917,2]
[329793565,1718676647868,-507.8,0.00021917,2]
[329793566,1718676647879,-496.05923904,0.00021917,2]
[329793567,1718676647888,-507.8,0.00021917,2]
[329793568,1718676647898,-503.475321,0.00021917,2]
[329793569,1718676647907,-500.0,0.00021917,2]
[329793570,1718676647917,-500.0,0.00021917,2]
[329793571,1718676647926,-500.0,0.00021917,2]
[329793572,1718676647936,-500.0,0.00021917,2]
[329793573,1718676647947,-500.0,0.00021917,2]
[329793574,1718676647958,-500.0,0.00021917,2]
[329793575,1718676647968,-506.68816466,0.00021917,2]
[329793576,1718676647978,-500.0,0.00021917,2]
[329793577,1718676647988,-502.15795409,0.00021917,2]
[329793578,1718676647999,-507.75631178,0.00021917,2]
[329793579,1718676648009,-581.07,0.00021917,2]
[329793580,1718676648018,-501.66762547,0.00021917,2]
[329793581,1718676648028,-302.12937422,0.00021917,2]
[329793582,1718676648037,-573.98,0.00021917,2]
[329793583,1718676648047,-503.97581454,0.00021917,2]
[329793584,1718676648056,-508.98862125,0.00021917,2]
[329793585,1718676648066,-520.91040281,0.00021917,2]
[329793586,1718676648075,-500.0,0.00021917,2]
[329793587,1718676648084,-500.0,0.00021917,2]
[329793588,1718676648093,-500.0,0.00021917,2]
[329793589,1718676648105,-504.10888051,0.00021917,2]
[329793590,1718676648114,-500.0,0.00021917,2]
[329793591,1718676648124,-503.52842467,0.00021917,2]
[329793592,1718676648134,-500.0,0.00021917,2]
[329793593,1718676648143,-500.0,0.00021917,2]
[329793594,1718676648152,-500.0,0.00021917,2]
[329793595,1718676648162,-500.0,0.00021917,2]
[329793596,1718676648171,-385.53437817,0.00021917,2]
[329793597,1718676648181,-500.0,0.00021917,2]
[329793598,1718676648190,-500.0,0.00021917,2]
[329793599,1718676648200,-500.0,0.00021917,2]
[329793600,1718676648210,-500.0,0.00021917,2]
[329793601,1718676648220,-649.66,0.00021917,2]
[329793602,1718676648229,-667.34,0.00021917,2]
[329793603,1718676648238,-500.0,0.00021917,2]
[329793604,1718676648247,-711.49,0.00021917,2]
[329793605,1718676648257,-500.0,0.00021917,2]
[329793606,1718676648266,-567.75,0.00021917,2]
[329793607,1718676648277,-500.0,0.00021917,2]
[329793608,1718676648289,-500.0,0.00021917,2]
[329793609,1718676648299,-993.55,0.00021917,2]
[329793610,1718676648308,-512.27029153,0.00021917,2]
[329793611,1718676648320,-600.69,0.00021917,2]
[329793612,1718676648331,-500.0,0.00021917,2]
[329793613,1718676648340,-510.0847596,0.00021917,2]
[329793614,1718676648350,-500.0,0.00021917,2]
[329793615,1718676648363,-500.0,0.00021917,2]
[329793616,1718676648372,-500.0,0.00021917,2]
[329793617,1718676648383,-500.0,0.00021917,2]
[329793618,1718676648392,-501.61352811,0.00021917,2]
[329793619,1718676648405,-512.12664093,0.00021917,2]